bitfinex/quotes_BTCUSD_20250127
["timestamp","ask_amount","ask_price","bid_price","bid_amount"]
[1738020861916,0.93289737,101950.0,101940.0,0.76409257]
[1738020867548,0.91751296,101950.0,101940.0,0.76409257]
[1738020869796,0.90823296,101950.0,101940.0,0.87502839]
[1738020870190,0.90823296,101950.0,101940.0,0.76409257]
[1738020872419,0.57933296,101950.0,101940.0,0.87502839]
[1738020872619,0.57933296,101950.0,101940.0,0.76409257]
[1738020874029,0.59471734,101950.0,101940.0,0.76409257]
[1738020876653,0.59471734,101950.0,101940.0,0.78393402]
[1738020880022,0.50821734,101950.0,101940.0,1.15221713]
[1738020880217,0.49283296,101950.0,101940.0,0.93393402]
[1738020881521,0.49283296,101950.0,101940.0,1.15221713]
[1738020884981,0.49283296,101950.0,101940.0,1.26315295]
[1738020885173,0.49283296,101950.0,101940.0,1.20284776]
[1738020885315,0.49283296,101950.0,101940.0,1.31378358]
[1738020886157,0.16226968,101960.0,101950.0,0.15713]
[1738020886359,0.65510264,101960.0,101950.0,0.85683377]
[1738020886736,0.65510264,101960.0,101950.0,0.93835311]
[1738020887660,0.63971889,101960.0,101950.0,0.93835311]
[1738020888776,0.63971889,101960.0,101950.0,0.93935311]
[1738020889176,0.63971889,101960.0,101950.0,0.83141729]
[1738020890137,0.63971889,101960.0,101950.0,0.8409619]
[1738020891571,0.63971889,101960.0,101950.0,0.65111461]
[1738020892214,0.65510183,101960.0,101950.0,0.65111461]
[1738020892412,0.65510183,101960.0,101950.0,0.85939772]
[1738020896443,0.65510183,101960.0,101950.0,0.86939772]
[1738020898940,0.65510183,101960.0,101950.0,0.95259772]
[1738020901818,0.65510183,101960.0,101950.0,1.22609772]
[1738020902021,0.64803054,101980.0,101970.0,0.147102]
[1738020902223,0.64803054,101980.0,101970.0,0.63842252]
[1738020902428,0.64803054,101980.0,101970.0,0.637442]
[1738020904997,0.66341173,101980.0,101970.0,0.637442]
[1738020906570,0.66341173,101980.0,101970.0,0.73478929]
[1738020906766,0.59501151,101980.0,101970.0,0.73478929]
[1738020907823,0.59501151,101980.0,101970.0,0.74448427]
[1738020908168,0.59501151,101980.0,101970.0,0.64713698]
[1738020909088,0.59501151,101980.0,101970.0,0.65013698]
[1738020911089,0.59501151,101980.0,101970.0,0.65655978]
[1738020913257,0.59501151,101980.0,101970.0,0.87484289]
[1738020913459,0.50851151,101980.0,101970.0,0.99964289]
[1738020914412,0.01567855,101980.0,101970.0,0.99964289]
[1738020915709,0.01567855,101980.0,101970.0,0.81110707]
[1738020916487,0.50851151,101980.0,101970.0,0.65655978]
[1738020917883,0.01567855,101980.0,101970.0,0.65655978]
[1738020918675,0.01567855,101980.0,101970.0,0.86484289]
[1738020918820,0.01567855,101980.0,101970.0,1.26247871]
[1738020919018,0.00029736,101980.0,101970.0,1.28247871]
[1738020919223,0.00029736,101980.0,101970.0,1.31310203]
[1738020921188,0.00029736,101980.0,101970.0,1.27947871]
[1738020921390,0.00029736,101980.0,101970.0,1.28747871]
[1738020923356,0.01567593,101980.0,101970.0,1.28747871]
[1738020923875,9.3e-07,101980.0,101970.0,1.39097871]
[1738020924082,2.9e-07,101990.0,101980.0,0.388587]
[1738020924291,2.9e-07,101990.0,101980.0,1.15466011]
[1738020924467,2.9e-07,101990.0,101980.0,1.19209439]
[1738020924701,2.9e-07,101990.0,101980.0,1.62289439]
[1738020924899,2.9e-07,101990.0,101980.0,1.64589439]
[1738020925281,2.9e-07,101990.0,101980.0,1.64904156]
[1738020925837,2.9e-07,101990.0,101980.0,1.64804156]
[1738020926039,2.9e-07,101990.0,101980.0,1.65004156]
[1738020926181,2.9e-07,101990.0,101980.0,1.64804156]
[1738020927206,2.9e-07,101990.0,101980.0,1.61746854]
[1738020927610,2.9e-07,101990.0,101980.0,1.66174854]
[1738020930440,2.9e-07,101990.0,101980.0,1.68118979]
[1738020931245,2.9e-07,101990.0,101980.0,1.71169638]
[1738020931459,2.9e-07,101990.0,101980.0,1.68118979]
[1738020931833,2.9e-07,101990.0,101980.0,1.7116971]
[1738020932037,2.9e-07,101990.0,101980.0,1.70831248]
[1738020932247,2.9e-07,101990.0,101980.0,1.67780517]
[1738020932575,2.9e-07,101990.0,101980.0,1.70830647]
[1738020933342,2.9e-07,101990.0,101980.0,1.67780517]
[1738020933937,2.9e-07,101990.0,101980.0,1.7083029]
[1738020935757,2.9e-07,101990.0,101980.0,1.7084443]
[1738020936383,2.9e-07,101990.0,101980.0,1.67794657]
[1738020936584,2.9e-07,101990.0,101980.0,1.70843789]
[1738020937660,6.8e-07,102010.0,102000.0,0.52892964]
[1738020937862,0.57213296,102020.0,102010.0,0.147044]
[1738020938066,0.57213296,102020.0,102010.0,0.84645723]
[1738020938393,0.57213296,102020.0,102010.0,0.84892651]
[1738020938926,0.49283296,102020.0,102010.0,0.84892651]
[1738020940116,0.49283296,102020.0,102010.0,0.85092651]
[1738020940740,0.49283296,102020.0,102010.0,1.00092651]
[1738020940948,0.68557992,102030.0,102020.0,0.297029]
[1738020941181,0.11484696,102030.0,102020.0,0.99541211]
[1738020941396,0.60767992,102030.0,102020.0,0.99885243]
[1738020941617,0.68677992,102030.0,102020.0,0.79056932]
[1738020942211,0.68827014,102030.0,102020.0,0.79056932]
[1738020942670,0.68827014,102030.0,102020.0,0.79256932]
[1738020943082,0.68827014,102030.0,102020.0,1.00085243]
[1738020943519,0.68727014,102030.0,102020.0,1.00085243]
[1738020944365,0.60817014,102030.0,102020.0,1.00085243]
[1738020944574,0.62354329,102030.0,102020.0,1.00085243]
[1738020949957,0.62354329,102030.0,102020.0,1.01085243]
[1738020950716,0.13071033,102030.0,102020.0,1.01085243]
[1738020950882,0.11533718,102030.0,102020.0,1.01085243]
[1738020954763,0.11533718,102030.0,102020.0,1.03085243]
[1738020954902,0.09573518,102030.0,102020.0,1.49960195]
[1738020955115,1.8e-07,102030.0,102020.0,1.55058825]
[1738020955311,1.8e-07,102030.0,102020.0,1.58110152]
[1738020955967,1.8e-07,102030.0,102020.0,1.57910152]
[1738020956731,1.8e-07,102030.0,102020.0,1.62470152]
[1738020957120,1.8e-07,102030.0,102020.0,1.75110152]
[1738020957335,1.8e-07,102030.0,102020.0,1.97220152]
[1738020957535,1.8e-07,102030.0,102020.0,1.97520152]
[1738020960106,1.8e-07,102030.0,102020.0,1.97534292]
[1738020960911,1.2e-07,102030.0,102020.0,1.97534292]
[1738020961589,1.2e-07,102030.0,102020.0,2.30264292]
[1738020964351,0.00029758,102050.0,102040.0,0.327001]
[1738020964550,0.00029758,102050.0,102040.0,1.02543128]
[1738020964711,0.00029758,102050.0,102040.0,1.02885345]
[1738020965270,0.00029758,102050.0,102040.0,1.05935801]
[1738020965711,5.8e-07,102050.0,102040.0,1.05935801]
[1738020966125,5.8e-07,102050.0,102040.0,1.09861701]
[1738020967224,5.8e-07,102050.0,102040.0,1.09961701]
[1738020967372,5.8e-07,102050.0,102040.0,1.10461701]
[1738020968655,5.8e-07,102050.0,102040.0,1.09861701]
[1738020968895,5.8e-07,102050.0,102040.0,1.11061701]
[1738020969588,0.12500058,102050.0,102040.0,0.9896032]
[1738020969834,0.61783354,102050.0,102040.0,0.93983964]
[1738020970055,0.61783354,102050.0,102040.0,1.06052977]
[1738020970906,0.61783354,102050.0,102040.0,1.0438631]
[1738020971841,0.61783354,102050.0,102040.0,1.0238631]
[1738020972697,0.61783354,102050.0,102040.0,1.0438631]
[1738020974431,5.8e-07,102050.0,102040.0,1.0538631]
[1738020975276,0.01536887,102050.0,102040.0,1.0538631]
[1738020976420,0.01536887,102050.0,102040.0,1.3811631]
[1738020976738,5.8e-07,102050.0,102040.0,1.3811631]
[1738020978106,5.8e-07,102050.0,102040.0,1.41171601]
[1738020979453,0.01536852,102050.0,102040.0,1.41171601]
[1738020979772,5.8e-07,102050.0,102040.0,1.41171601]
[1738020981714,0.01536858,102050.0,102040.0,1.41171601]
[1738020981896,5.8e-07,102050.0,102040.0,1.41171601]
[1738020982067,0.0153687,102050.0,102040.0,1.41171601]
[1738020982738,5.8e-07,102050.0,102040.0,1.41171601]
[1738020983338,5.8e-07,102050.0,102040.0,1.41185741]
[1738020984416,0.01536854,102050.0,102040.0,1.41185741]
[1738020984707,5.8e-07,102050.0,102040.0,1.41185741]
[1738020987622,5.8e-07,102050.0,102040.0,1.43485741]
[1738020988189,0.128,102080.0,102070.0,0.146957]
[1738020988388,0.0785,102080.0,102070.0,0.99607963]
[1738020988633,0.0785,102080.0,102070.0,0.99849506]
[1738020989242,0.0785,102080.0,102070.0,1.02907523]
[1738020989614,0.0785,102080.0,102070.0,1.00849506]
[1738020990185,0.0785,102080.0,102070.0,1.03906523]
[1738020990541,0.0785,102080.0,102070.0,1.04106523]
[1738020991137,0.0785,102080.0,102070.0,0.99049506]
[1738020991339,0.0785,102080.0,102070.0,0.98049506]
[1738020991562,0.0785,102080.0,102070.0,0.86955924]
[1738020991957,0.57133296,102080.0,102070.0,0.86955924]
[1738020992402,0.57133296,102080.0,102070.0,0.77221195]
[1738020992601,0.76807596,102080.0,102070.0,0.62221195]
[1738020992840,1.38229022,102080.0,102070.0,0.49525495]
[1738020993042,1.38229022,102080.0,102070.0,0.41715495]
[1738020993243,1.45378654,102080.0,102070.0,0.41715495]
[1738020993736,1.45378654,102080.0,102070.0,0.42021558]
[1738020994145,1.37317941,102080.0,102070.0,0.56717258]
[1738020994369,1.34432325,102080.0,102070.0,0.56517258]
[1738020994907,1.34532325,102080.0,102070.0,0.56517258]
[1738020995107,0.95103296,102080.0,102070.0,0.56531388]
[1738020995310,0.95032969,102080.0,102070.0,0.56531388]
[1738020995492,0.95132969,102080.0,102070.0,0.56531388]
[1738020996216,0.62242969,102080.0,102070.0,0.56531388]
[1738020997302,0.62242969,102080.0,102070.0,0.56731388]
[1738020997511,0.62142969,102080.0,102070.0,0.56731388]
[1738020997715,0.76837269,102080.0,102070.0,0.56731388]
[1738020997952,0.96406727,102080.0,102070.0,0.42035688]
[1738020998182,1.13706727,102080.0,102070.0,0.42035688]
[1738020998396,1.13606727,102080.0,102070.0,0.42035688]
[1738020999684,1.13606727,102080.0,102070.0,0.41835688]
[1738021000871,1.26492343,102080.0,102070.0,0.41835688]
[1738021001275,1.26592343,102080.0,102070.0,0.41835688]
[1738021001452,1.23706727,102080.0,102070.0,0.41835688]
[1738021001648,1.23606727,102080.0,102070.0,0.41835688]
[1738021001872,1.13871998,102080.0,102070.0,0.41835688]
[1738021002072,1.03871998,102080.0,102070.0,0.41835688]
[1738021002275,1.13871998,102080.0,102070.0,0.41835688]
[1738021002489,1.11571998,102080.0,102070.0,0.56531388]
[1738021002799,1.13108856,102080.0,102070.0,0.56531388]
[1738021003028,1.15560994,102080.0,102070.0,0.56531388]
[1738021003232,0.97797698,102080.0,102070.0,0.56531388]
[1738021004577,0.96977698,102080.0,102070.0,0.56531388]
[1738021004779,0.97897698,102080.0,102070.0,0.56531388]
[1738021005381,0.62242969,102080.0,102070.0,0.56531388]
[1738021006383,0.74542969,102080.0,102070.0,0.56531388]
[1738021006905,0.56692969,102080.0,102070.0,0.56531388]
[1738021007199,0.56692969,102080.0,102070.0,0.5749044]
[1738021007414,0.49412969,102080.0,102070.0,0.78318751]
[1738021007614,0.49412969,102080.0,102070.0,0.67225169]
[1738021008196,0.52346653,102080.0,102070.0,0.67225169]
[1738021009793,0.52346653,102080.0,102070.0,0.56531388]
[1738021011127,0.49412969,102080.0,102070.0,0.56531388]
[1738021011533,0.49312969,102080.0,102070.0,0.56531388]
[1738021012445,0.49312969,102080.0,102070.0,0.56731388]
[1738021012859,0.50849681,102080.0,102070.0,0.56731388]
[1738021014548,7.3e-07,102080.0,102070.0,1.02319699]
[1738021014883,7.3e-07,102080.0,102070.0,1.05373506]
[1738021019573,7.3e-07,102080.0,102070.0,1.02319699]
[1738021021463,7.3e-07,102080.0,102070.0,1.14413281]
[1738021021665,7.3e-07,102080.0,102070.0,1.22450865]
[1738021021877,7.3e-07,102080.0,102070.0,1.11357283]
[1738021022081,8.8e-07,102090.0,102080.0,0.326943]
[1738021022287,2.4e-07,102100.0,102090.0,0.326929]
[1738021022493,2.4e-07,102100.0,102090.0,1.25920793]
[1738021022710,2.4e-07,102100.0,102090.0,1.2659354]
[1738021023341,2.4e-07,102100.0,102090.0,1.26608257]
[1738021023542,0.49313054,102110.0,102090.0,1.26608257]
[1738021023745,0.00029758,102110.0,102100.0,0.43127635]
[1738021024000,0.00029758,102110.0,102100.0,1.14811711]
[1738021024310,0.00029758,102110.0,102100.0,1.15482282]
[1738021024986,0.00029758,102110.0,102100.0,1.51312282]
[1738021025194,0.00029758,102110.0,102100.0,1.51126568]
[1738021025827,0.00029758,102110.0,102100.0,1.53126318]
[1738021026383,5.8e-07,102110.0,102100.0,1.53626318]
[1738021026585,5.9e-07,102120.0,102110.0,0.3269]
[1738021026782,5.9e-07,102120.0,102110.0,1.29348893]
[1738021026985,5.9e-07,102120.0,102110.0,1.29832196]
[1738021027186,0.00760668,102130.0,102120.0,0.176886]
[1738021027362,0.00029694,102130.0,102120.0,1.0648039]
[1738021027731,0.00029694,102130.0,102120.0,1.06864243]
[1738021028459,0.00029694,102130.0,102120.0,1.06964243]
[1738021028816,0.00029694,102130.0,102120.0,1.06864243]
[1738021029862,0.00029694,102130.0,102120.0,0.95270661]
[1738021029994,0.00029694,102130.0,102120.0,0.82177079]
[1738021030421,0.63716422,102140.0,102120.0,0.82277079]
[1738021030656,0.65821057,102140.0,102130.0,0.146871]
[1738021030833,0.65821057,102140.0,102130.0,0.714541]
[1738021031047,0.65821057,102140.0,102130.0,0.71934297]
[1738021031432,0.67356772,102140.0,102130.0,0.71934297]
[1738021031807,0.67405824,102140.0,102130.0,0.71934297]
[1738021032414,0.91826253,102140.0,102130.0,0.71934297]
[1738021033772,1.01826253,102140.0,102130.0,0.71934297]
[1738021034121,1.00290538,102140.0,102130.0,0.71934297]
[1738021034322,0.75870109,102140.0,102130.0,0.71934297]
[1738021034518,0.90555809,102140.0,102130.0,0.71934297]
[1738021034750,0.75870109,102140.0,102130.0,0.71934297]
[1738021034947,0.90555809,102140.0,102130.0,0.71934297]
[1738021035148,1.00290538,102140.0,102130.0,0.57247197]
[1738021035557,1.00290538,102140.0,102130.0,0.71934297]
[1738021036355,1.00290538,102140.0,102130.0,0.57247197]
[1738021037010,1.00290538,102140.0,102130.0,0.71934297]
[1738021037413,1.01826444,102140.0,102130.0,0.71934297]
[1738021038491,0.87140744,102140.0,102130.0,0.71934297]
[1738021038732,1.01826444,102140.0,102130.0,0.71934297]
[1738021040805,1.01826444,102140.0,102130.0,0.57247197]
[1738021041208,1.00290538,102140.0,102130.0,0.57247197]
[1738021041549,1.00290538,102140.0,102130.0,0.57276849]
[1738021041754,1.00304658,102140.0,102130.0,0.57276849]
[1738021042439,0.92124099,102140.0,102130.0,0.57276849]
[1738021046854,1.08660064,102140.0,102130.0,0.57276849]
[1738021047547,1.09658807,102140.0,102130.0,0.57276849]
[1738021048719,1.08122842,102140.0,102130.0,0.57276849]
[1738021049980,1.06303401,102140.0,102130.0,0.57276849]
[1738021054460,1.06220658,102140.0,102130.0,0.71963949]
[1738021054662,1.16220658,102140.0,102130.0,0.71963949]
[1738021055554,1.17756638,102140.0,102130.0,0.57276849]
[1738021055755,1.16220658,102140.0,102130.0,0.57276849]
[1738021055997,1.17756638,102140.0,102130.0,0.57276849]
[1738021056585,1.16220658,102140.0,102130.0,0.57276849]
[1738021057372,1.15304658,102140.0,102130.0,0.57276849]
[1738021057615,1.16220658,102140.0,102130.0,0.71963949]
[1738021058369,1.01534958,102140.0,102130.0,0.71963949]
[1738021058575,0.69040229,102140.0,102130.0,0.71963949]
[1738021059059,0.79040229,102140.0,102130.0,0.71963949]
[1738021059825,0.78124229,102140.0,102130.0,0.71963949]
[1738021060208,0.79040229,102140.0,102130.0,0.71963949]
[1738021060408,0.63124229,102140.0,102130.0,0.71963949]
[1738021060620,0.50824229,102140.0,102130.0,0.71963949]
[1738021060819,0.03840933,102140.0,102130.0,0.71963949]
[1738021061597,0.03840933,102140.0,102130.0,0.72163949]
[1738021062011,0.01540933,102140.0,102130.0,0.72163949]
[1738021062322,0.01540933,102140.0,102130.0,0.83257531]
[1738021062457,0.01540933,102140.0,102130.0,1.0583226]
[1738021062866,0.01540933,102140.0,102130.0,1.2083226]
[1738021064345,0.01540933,102140.0,102130.0,1.2263226]
[1738021064609,0.01540933,102140.0,102130.0,1.2283226]
[1738021064979,0.01540933,102140.0,102130.0,1.24582505]
[1738021065324,0.01540933,102140.0,102130.0,1.23482505]
[1738021065528,0.01540933,102140.0,102130.0,1.12788923]
[1738021066364,0.01540933,102140.0,102130.0,1.23882505]
[1738021066495,0.01540933,102140.0,102130.0,1.03054194]
[1738021066715,0.03372467,102140.0,102130.0,0.98204194]
[1738021067776,0.04104572,102140.0,102130.0,0.98204194]
[1738021068187,0.06404572,102140.0,102130.0,0.75214194]
[1738021068954,0.06404572,102140.0,102130.0,0.74314194]
[1738021069162,0.06404572,102140.0,102130.0,0.73914194]
[1738021069361,0.06404572,102140.0,102130.0,0.75014194]
[1738021069575,0.03840933,102140.0,102130.0,0.75014194]
[1738021070677,0.38261362,102140.0,102130.0,0.73063949]
[1738021071565,0.38261362,102140.0,102130.0,0.72863949]
[1738021071772,0.38261362,102140.0,102130.0,0.71963949]
[1738021071949,0.38261362,102140.0,102130.0,0.72163949]
[1738021073145,0.83711362,102140.0,102130.0,0.57476849]
[1738021073322,0.93446091,102140.0,102130.0,0.57476849]
[1738021074077,0.93446091,102140.0,102130.0,0.57332789]
[1738021075987,0.96331649,102140.0,102130.0,0.57332789]
[1738021076346,1.01271649,102140.0,102130.0,0.57332789]
[1738021078017,0.9153692,102140.0,102130.0,0.57332789]
[1738021081076,1.0253692,102140.0,102130.0,0.57332789]
[1738021081330,1.0253692,102140.0,102130.0,0.57136789]
[1738021081717,1.0253692,102140.0,102130.0,0.56936789]
[1738021083024,0.73910936,102140.0,102130.0,0.56936789]
[1738021083227,1.76710736,102140.0,102130.0,0.56936789]
[1738021083427,1.61441936,102140.0,102130.0,0.56936789]
[1738021083646,0.83745665,102140.0,102130.0,0.56936789]
[1738021083933,1.28709365,102140.0,102130.0,0.56936789]
[1738021086246,1.18709365,102140.0,102130.0,0.39745289]
[1738021086404,1.50709365,102140.0,102130.0,0.39745289]
[1738021086604,1.50709365,102140.0,102130.0,0.39409152]
[1738021087470,1.61149365,102140.0,102130.0,0.39409152]
[1738021088097,1.61049365,102140.0,102130.0,0.39409152]
[1738021088634,1.61149365,102140.0,102130.0,0.39409152]
[1738021089751,1.50809365,102140.0,102130.0,0.39409152]
[1738021090375,1.17509365,102140.0,102130.0,0.39782638]
[1738021090598,1.13282065,102140.0,102130.0,0.39782638]
[1738021090832,1.07239149,102140.0,102130.0,0.39782638]
[1738021091070,1.08627149,102140.0,102130.0,0.39782638]
[1738021091273,1.09439149,102140.0,102130.0,0.39782638]
[1738021091477,1.09539149,102140.0,102130.0,0.39782638]
[1738021091630,1.42803165,102140.0,102130.0,0.39782638]
[1738021092038,1.42803165,102140.0,102130.0,0.39409152]
[1738021092279,1.42803165,102140.0,102130.0,0.39782638]
[1738021092858,1.41891165,102140.0,102130.0,0.39782638]
[1738021093060,1.25043165,102140.0,102130.0,0.24116238]
[1738021093262,1.25143165,102140.0,102130.0,0.24116238]
[1738021093465,1.25143165,102140.0,102130.0,0.23742752]
[1738021093733,1.23143165,102140.0,102130.0,0.23742752]
[1738021094140,1.23043165,102140.0,102130.0,0.23742752]
[1738021094141,1.23143165,102140.0,102130.0,0.21784452]
[1738021094292,0.93997665,102140.0,102130.0,0.13951252]
[1738021094491,5.45839965,102140.0,102130.0,0.09343725]
[1738021094694,5.33641565,102140.0,102130.0,0.04343725]
[1738021094897,4.76878365,102140.0,102130.0,0.01156094]
[1738021095121,4.69771365,102140.0,102130.0,9.4e-07]
[1738021095323,0.93997665,102140.0,102130.0,9.4e-07]
[1738021096267,0.95534244,102140.0,102130.0,9.4e-07]
[1738021096743,0.146943,102080.0,102070.0,0.1280413]
[1738021096913,1.08012165,102080.0,102070.0,0.0500413]
[1738021097419,1.08012165,102080.0,102070.0,0.05384867]
[1738021097632,1.08012165,102080.0,102070.0,0.54368867]
[1738021098080,1.23012165,102080.0,102070.0,0.50193584]
[1738021098285,1.26897723,102080.0,102070.0,0.49593584]
[1738021099299,1.26897723,102080.0,102070.0,0.49393584]
[1738021099511,1.26997723,102080.0,102070.0,0.49393584]
[1738021100125,1.26897723,102080.0,102070.0,0.49393584]
[1738021100359,1.26997723,102080.0,102070.0,0.49393584]
[1738021102596,1.25997723,102080.0,102070.0,0.49393584]
[1738021103365,1.26997723,102080.0,102070.0,0.49393584]
[1738021105085,1.27954406,102080.0,102070.0,0.49393584]
[1738021106814,1.26954406,102080.0,102070.0,0.49393584]
[1738021107017,1.27954406,102080.0,102070.0,0.49393584]
[1738021108619,1.98463206,102080.0,102070.0,0.49393584]
[1738021111097,1.27954406,102080.0,102070.0,0.49393584]
[1738021111273,2.11074106,102080.0,102070.0,0.49393584]
[1738021112040,1.25269008,102080.0,102070.0,0.49393584]
[1738021112240,1.26181008,102080.0,102070.0,0.49393584]
[1738021112665,1.25269008,102080.0,102070.0,0.49393584]
[1738021112865,1.26181008,102080.0,102070.0,0.49393584]
[1738021113281,1.27181008,102080.0,102070.0,0.49393584]
[1738021113485,1.97067111,102080.0,102070.0,0.49393584]
[1738021115755,1.22969008,102080.0,102070.0,0.57213584]
[1738021115946,1.23881008,102080.0,102070.0,0.57213584]
[1738021116358,1.26181008,102080.0,102070.0,0.57213584]
[1738021116566,1.26081008,102080.0,102070.0,0.57213584]
[1738021116912,1.26181008,102080.0,102070.0,0.57213584]
[1738021117126,1.35915737,102080.0,102070.0,0.57213584]
[1738021117481,1.35915737,102080.0,102070.0,0.49393584]
[1738021120949,1.73955737,102080.0,102070.0,0.49393584]
[1738021121152,3.23414011,102080.0,102070.0,0.49393584]
[1738021121357,3.23414011,102080.0,102070.0,0.49012847]
[1738021121734,3.27954011,102080.0,102070.0,0.49012847]
[1738021122377,3.24976811,102080.0,102070.0,0.49012847]
[1738021122587,3.14558311,102080.0,102070.0,0.49012847]
[1738021122797,2.98196711,102080.0,102070.0,0.49012847]
[1738021123004,2.58902811,102080.0,102070.0,0.49012847]
[1738021123204,2.59902811,102080.0,102070.0,0.49012847]
[1738021123351,2.50683011,102080.0,102070.0,0.4955592]
[1738021123555,2.51683011,102080.0,102070.0,0.4955592]
[1738021123758,2.50683011,102080.0,102070.0,0.4955592]
[1738021124369,2.52885648,102080.0,102070.0,0.4955592]
[1738021124970,2.54830799,102080.0,102070.0,0.4955592]
[1738021125683,2.54830799,102080.0,102070.0,0.49012847]
[1738021125812,2.52628162,102080.0,102070.0,0.49012847]
[1738021126013,2.52628162,102080.0,102070.0,0.4955592]
[1738021126936,2.03344866,102080.0,102070.0,0.4955592]
[1738021127586,2.08853916,102080.0,102070.0,0.4955592]
[1738021127853,1.78853916,102080.0,102070.0,0.4955592]
[1738021128224,1.78853916,102080.0,102070.0,0.4905592]
[1738021128999,1.81057463,102080.0,102070.0,0.4905592]
[1738021129638,1.81057463,102080.0,102070.0,0.48512847]
[1738021131634,2.88444963,102080.0,102070.0,0.48512847]
[1738021131993,2.74860763,102080.0,102070.0,0.48512847]
[1738021132928,2.67148166,102080.0,102070.0,0.48512847]
[1738021134599,2.67148166,102080.0,102070.0,0.48542583]
[1738021134956,2.36072026,102080.0,102070.0,0.48542583]
[1738021135884,2.36072026,102080.0,102070.0,0.49085656]
[1738021136023,2.38274683,102080.0,102070.0,0.49085656]
[1738021136209,2.43781324,102080.0,102070.0,0.49085656]
[1738021136632,2.07323224,102080.0,102070.0,0.49085656]
[1738021137877,2.06411224,102080.0,102070.0,0.49085656]
[1738021138120,2.07323224,102080.0,102070.0,0.49085656]
[1738021138512,2.14873224,102080.0,102070.0,0.49085656]
[1738021139147,2.14815584,102080.0,102070.0,0.49085656]
[1738021140174,2.14815584,102080.0,102070.0,0.49131006]
[1738021142444,1.40942984,102080.0,102070.0,0.49131006]
[1738021142635,3.05672656,102080.0,102070.0,0.49131006]
[1738021142937,2.89263556,102080.0,102070.0,0.49131006]
[1738021143143,1.50448241,102080.0,102070.0,0.54011006]
[1738021143410,1.49448241,102080.0,102070.0,0.53467933]
[1738021143607,1.58897815,102080.0,102070.0,0.49131006]
[1738021144583,1.66677815,102080.0,102070.0,0.49131006]
[1738021145660,1.72186618,102080.0,102070.0,0.49131006]
[1738021147004,1.87276618,102080.0,102070.0,0.43252806]
[1738021147245,1.87276618,102080.0,102070.0,0.13471099]
[1738021147798,1.87176618,102080.0,102070.0,0.13471099]
[1738021148039,1.87176618,102080.0,102070.0,0.09552299]
[1738021148174,1.87176618,102080.0,102070.0,0.05633499]
[1738021148376,1.87176618,102080.0,102070.0,0.03674099]
[1738021148596,0.596986,102050.0,102040.0,0.0001414]
[1738021148795,3.87226028,102050.0,102040.0,0.00028858]
[1738021149090,4.0458005,102050.0,102040.0,0.49026858]
[1738021149484,4.1460005,102050.0,102040.0,0.49026858]
[1738021149752,3.8460005,102050.0,102040.0,0.49026858]
[1738021149960,3.8470005,102050.0,102040.0,0.41186858]
[1738021150173,2.02506647,102050.0,102040.0,0.53566858]
[1738021150383,2.12617247,102050.0,102040.0,0.53566858]
[1738021150594,2.27617247,102050.0,102040.0,0.53566858]
[1738021150798,2.29817247,102050.0,102040.0,0.53566858]
[1738021151034,2.39551976,102050.0,102040.0,0.46475374]
[1738021151222,2.39551976,102050.0,102040.0,0.45926858]
[1738021151443,2.39551976,102050.0,102040.0,0.46475374]
[1738021151653,2.40517243,102050.0,102040.0,0.46475374]
[1738021152399,2.41425243,102050.0,102040.0,0.46475374]
[1738021152606,2.40425243,102050.0,102040.0,0.41735374]
[1738021153059,2.70425243,102050.0,102040.0,0.41735374]
[1738021153244,2.71362291,102050.0,102040.0,0.41735374]
[1738021153443,2.41362291,102050.0,102040.0,0.49036858]
[1738021153688,2.70362291,102050.0,102040.0,0.41735374]
[1738021153893,2.77932291,102050.0,102040.0,0.41735374]
[1738021155125,2.60908457,102050.0,102040.0,0.41735374]
[1738021155335,2.62908457,102050.0,102040.0,0.41735374]
[1738021156158,2.52568457,102050.0,102040.0,0.41735374]
[1738021157858,2.52568457,102050.0,102040.0,0.41749534]
[1738021160541,2.33457857,102050.0,102040.0,0.41749534]
[1738021160682,4.98704157,102050.0,102040.0,0.41749534]
[1738021160879,4.89037457,102050.0,102040.0,0.41201018]
[1738021161281,4.78859257,102050.0,102040.0,0.41201018]
[1738021161488,4.97196057,102050.0,102040.0,0.41201018]
[1738021161707,4.91094257,102050.0,102040.0,0.41201018]
[1738021161932,4.09252891,102050.0,102040.0,0.41201018]
[1738021162158,4.10160891,102050.0,102040.0,0.41201018]
[1738021162497,3.39377262,102050.0,102040.0,0.41749534]
[1738021162722,3.40377262,102050.0,102040.0,0.41201018]
[1738021162933,3.42677262,102050.0,102040.0,0.41201018]
[1738021163231,3.42677262,102050.0,102040.0,0.41749534]
[1738021164444,3.42677262,102050.0,102040.0,0.41201018]
[1738021164610,3.52411991,102050.0,102040.0,0.41749534]
[1738021164871,3.20508962,102050.0,102040.0,0.54479534]
[1738021165101,3.04116962,102050.0,102040.0,0.54479534]
[1738021165304,3.20508962,102050.0,102040.0,0.53931018]
[1738021165552,3.21416962,102050.0,102040.0,0.54479534]
[1738021165764,3.21416962,102050.0,102040.0,0.46539534]
[1738021165765,3.55053128,102050.0,102040.0,0.46539534]
[1738021165988,3.64787857,102050.0,102040.0,0.45991018]
[1738021166189,3.64787857,102050.0,102040.0,0.46539534]
[1738021169274,3.31151691,102050.0,102040.0,0.46539534]
[1738021169861,3.32151691,102050.0,102040.0,0.46539534]
[1738021170236,3.32181427,102050.0,102040.0,0.46539534]
[1738021172666,3.32181427,102050.0,102040.0,0.41749534]
[1738021172667,3.39471427,102050.0,102040.0,0.41749534]
[1738021172815,3.42107593,102050.0,102040.0,0.41201018]
[1738021174358,3.42107593,102050.0,102040.0,0.41749534]
[1738021174758,3.46036993,102050.0,102040.0,0.41201018]
[1738021177275,3.54834265,102050.0,102040.0,0.41201018]
[1738021177683,3.65174265,102050.0,102040.0,0.41201018]
[1738021178784,3.15890969,102050.0,102040.0,0.41201018]
[1738021179250,3.15890969,102050.0,102040.0,0.41749534]
[1738021179456,0.043,102030.0,102020.0,0.0001414]
[1738021179658,0.043,102030.0,102000.0,0.1229]
[1738021179659,0.180044,102010.0,102000.0,0.1229]
[1738021179831,2.70492825,102010.0,102000.0,0.12339022]
[1738021180100,2.69527747,102010.0,102000.0,0.53856022]
[1738021180699,2.62665247,102010.0,102000.0,0.53856022]
[1738021180863,2.59470847,102010.0,102000.0,0.53856022]
[1738021181065,2.69205576,102010.0,102000.0,0.53856022]
[1738021181535,2.66101076,102010.0,102000.0,0.53856022]
[1738021181692,2.43533376,102010.0,102000.0,0.53856022]
[1738021182581,2.43533376,102010.0,102000.0,0.61966022]
[1738021182790,2.30099776,102010.0,102000.0,0.61980182]
[1738021184719,2.31068497,102010.0,102000.0,0.61980182]
[1738021184927,2.31068497,102010.0,102000.0,0.53870182]
[1738021185150,2.31976497,102010.0,102000.0,0.53870182]
[1738021187039,2.31976497,102010.0,102000.0,0.54803217]
[1738021187840,1.88383897,102010.0,102000.0,0.54803217]
[1738021188045,2.77821197,102010.0,102000.0,0.54803217]
[1738021189095,2.75855497,102010.0,102000.0,0.54803217]
[1738021192737,2.73553597,102010.0,102000.0,0.54803217]
[1738021198285,2.77553697,102010.0,102000.0,0.54803217]
[1738021198524,1.31173897,102010.0,102000.0,0.54803217]
[1738021198691,2.20342197,102010.0,102000.0,0.54803217]
[1738021198901,2.18673397,102010.0,102000.0,0.54803217]
[1738021199074,2.18673397,102010.0,102000.0,0.54833623]